bitfinex/quotes_ETHUSD_20250616
["timestamp","ask_amount","ask_price","bid_price","bid_amount"]
[1750066479526,0.1896,2626.6,2626.5,3.80734818]
[1750066480188,6.50823783,2626.6,2626.5,3.80734818]
[1750066480582,6.52724639,2626.6,2626.5,3.80734818]
[1750066480785,2.07610882,2626.6,2626.4,3.80741171]
[1750066481029,0.1896,2626.6,2626.5,3.80734818]
[1750066481344,0.20860856,2626.6,2625.9,10.83976331]
[1750066481629,0.20860856,2626.6,2626.3,3.80754984]
[1750066481630,6.31863783,2626.5,2626.3,3.80754984]
[1750066481796,0.01900856,2626.4,2626.3,3.80754984]
[1750066483021,6.31863783,2626.5,2626.4,3.80749314]
[1750066483227,1.71692464,2626.5,2625.9,7.0316]
[1750066483433,17.15023783,2626.7,2626.3,3.80753416]
[1750066483592,17.15023783,2626.7,2626.4,3.80742636]
[1750066483793,20.95730028,2626.7,2626.3,3.80756234]
[1750066484188,17.15023783,2626.7,2626.3,3.80756234]
[1750066484432,17.15023783,2626.7,2626.4,3.80747921]
[1750066484630,10.0,2626.7,2626.5,3.80734818]
[1750066484806,6.31863783,2626.7,2626.3,0.8236]
[1750066485006,6.31863783,2626.7,2626.4,3.80737335]
[1750066485202,0.01900856,2626.6,2626.4,3.80737335]
[1750066485406,0.01900856,2626.6,2626.3,3.8075582]
[1750066485608,6.31863783,2626.5,2626.3,3.8075582]
[1750066486387,7.70850247,2626.5,2626.1,3.80786758]
[1750066486591,0.01900856,2626.4,2626.2,3.80767618]
[1750066486791,0.01900856,2626.4,2626.0,0.8236]
[1750066487097,0.01900856,2626.4,2626.3,3.80763812]
[1750066489139,0.01900856,2626.4,2626.2,3.80773856]
[1750066490149,0.01900856,2626.4,2626.3,3.80763812]
[1750066493181,0.01900856,2626.4,2625.9,3.80820604]
[1750066493182,0.01900856,2626.4,2626.1,3.80787547]
[1750066493362,0.1896,2626.3,2626.1,3.80791576]
[1750066493840,0.1896,2626.1,2626.0,3.80801272]
[1750066495847,0.1896,2626.1,2625.7,1.616]
[1750066495848,0.20860856,2626.1,2625.7,5.42447802]
[1750066496065,0.1904,2626.0,2625.8,3.80823504]
[1750066496568,0.1904,2626.0,2625.9,3.80821813]
[1750066498184,0.1904,2626.0,2625.6,3.80859447]
[1750066498185,0.92291464,2626.0,2625.6,3.80859447]
[1750066498330,6.33764639,2625.9,2625.6,3.80859447]
[1750066498530,0.1904,2625.7,2625.6,3.80859447]
[1750066502353,7.0091,2626.1,2625.9,3.80812045]
[1750066502657,0.1904,2626.0,2625.9,3.80812045]
[1750066505271,0.1904,2626.0,2625.5,1.0001]
[1750066505448,7.05579166,2626.0,2625.8,3.80836282]
[1750066506381,7.05579166,2626.0,2625.5,1.0001]
[1750066506382,0.73715383,2626.0,2625.9,3.80821813]
[1750066506542,0.1904,2626.0,2625.9,3.80821813]
[1750066511390,0.1904,2626.0,2625.8,3.80829098]
[1750066512166,0.1904,2626.0,2625.9,3.80821813]
[1750066513493,6.50903783,2626.0,2625.8,3.80830392]
[1750066513854,6.50903783,2626.0,2625.2,6.212]
[1750066513855,10.0,2625.7,2625.3,3.80900581]
[1750066514054,6.31863783,2625.4,2625.2,3.80914572]
[1750066514254,6.33764639,2625.6,2625.1,3.80937869]
[1750066514455,6.33764639,2625.6,2625.4,3.80892747]
[1750066514693,10.0,2625.7,2625.5,3.80869348]
[1750066514898,10.0,2625.7,2625.4,3.80889327]
[1750066515095,10.0,2625.7,2625.5,3.80872078]
[1750066515390,10.0,2625.7,2625.4,3.80888492]
[1750066517805,10.0,2625.7,2625.4,3.80893118]
[1750066518015,10.0,2625.7,2625.5,3.80868728]
[1750066518762,10.0,2625.7,2625.6,3.80865326]
[1750066519223,10.0,2625.7,2625.5,3.80869622]
[1750066519896,10.0,2625.7,2625.4,3.80883837]
[1750066520207,10.0,2625.7,2625.5,3.80872576]
[1750066521082,10.0,2625.7,2625.4,3.80887277]
[1750066524007,10.0,2625.7,2625.5,3.8087805]
[1750066524214,10.0,2625.7,2625.4,3.80886077]
[1750066525920,10.1904,2625.8,2625.5,3.80877934]
[1750066526942,10.1904,2625.8,2625.3,4.78942575]
[1750066526943,10.0,2625.6,2625.3,4.78942575]
[1750066528012,10.0,2625.6,2625.4,3.80892396]
[1750066530138,10.0,2625.6,2625.3,4.78941353]
[1750066530445,10.0,2625.6,2625.4,3.80893618]
[1750066534137,10.0,2625.6,2625.5,3.80879832]
[1750066536846,0.1904,2625.8,2625.6,3.80865326]
[1750066537060,0.1904,2625.8,2625.7,3.8085082]
[1750066540916,10.1904,2626.0,2625.8,3.80827861]
[1750066541413,10.1904,2626.0,2625.9,3.80821813]
[1750066542046,10.1904,2626.0,2625.8,3.8082791]
[1750066542247,0.90948644,2626.1,2625.9,3.80821813]
[1750066542447,0.91040553,2626.4,2626.1,4.61913899]
[1750066542661,6.31863783,2626.5,2626.2,3.8076868]
[1750066542812,10.0,2626.4,2626.2,3.8076868]
[1750066543012,10.91040553,2626.4,2626.2,3.8076868]
[1750066543343,10.0,2626.4,2626.3,3.80763812]
[1750066543548,10.0,2626.4,2626.2,3.80770066]
[1750066547954,10.0,2626.4,2626.3,3.80763812]
[1750066548954,10.0,2626.4,2626.2,3.807759]
[1750066549862,10.0,2626.4,2626.3,3.80763812]
[1750066550748,10.7546,2626.7,2626.3,3.80763812]
[1750066550946,16.31863783,2626.5,2626.4,3.80747373]
[1750066551365,10.0,2626.4,2626.3,3.80755068]
[1750066552428,0.1896,2626.4,2626.3,3.80755068]
[1750066553744,0.8162,2626.3,2625.7,3.80840357]
[1750066553944,10.0,2625.7,2625.4,5.41085974]
[1750066554145,6.31863783,2625.5,2625.4,3.80885974]
[1750066562948,6.31863783,2625.5,2625.2,0.1904]
[1750066563149,0.01900856,2625.6,2625.3,3.80907723]
[1750066563948,0.1904,2625.3,2624.8,0.1904]
[1750066564154,0.20940856,2625.3,2624.9,3.80966893]
[1750066564494,6.50903783,2625.3,2625.0,3.80940349]
[1750066564990,6.50903783,2625.3,2624.9,3.80958627]
[1750066565498,6.50903783,2625.3,2624.6,7.04190496]
[1750066565499,11.09213389,2625.1,2624.6,4.00042369]
[1750066565794,6.31863783,2624.9,2624.6,0.1904]
[1750066565977,6.31863783,2624.7,2624.4,3.8103325]
[1750066566292,6.31863783,2624.7,2624.3,11.64253539]
[1750066566293,6.31863783,2624.5,2624.3,0.8571]
[1750066566510,6.31863783,2624.5,2624.3,0.6667]
[1750066566991,6.31863783,2624.5,2624.3,4.47716585]
[1750066567552,6.31863783,2624.5,2624.3,4.4772212]
[1750066567754,6.31863783,2624.5,2624.3,0.6667]
[1750066567971,6.31863783,2624.5,2624.3,4.47722171]
[1750066568602,6.31863783,2624.5,2624.4,3.81039475]
[1750066569772,10.1904,2624.6,2624.5,3.81024957]
[1750066569973,10.1904,2624.6,2624.4,3.8103271]
[1750066570701,10.1904,2624.6,2624.3,4.47716028]
[1750066571000,10.1904,2624.6,2624.4,3.81036823]
[1750066571218,0.8176,2625.1,2624.6,0.7597]
[1750066571526,0.1904,2625.0,2624.6,4.56975018]
[1750066571694,0.20940856,2625.0,2624.7,3.80988052]
[1750066571891,0.20940856,2625.0,2624.8,3.80975798]
[1750066572062,7.13623783,2624.9,2624.6,3.8100314]
[1750066572261,7.13623783,2624.9,2624.7,3.80993497]
[1750066572470,0.20940856,2625.0,2624.8,3.80981408]
[1750066572717,0.1904,2625.0,2624.9,3.80966893]
[1750066573267,0.1904,2625.0,2624.8,3.80981408]
[1750066573268,0.20940856,2625.0,2624.8,3.80975118]
[1750066573694,0.20940856,2625.0,2624.9,3.80966893]
[1750066573999,0.1904,2625.0,2624.9,3.80966893]
[1750066576673,0.20940856,2625.0,2624.9,3.80966893]
[1750066577734,0.1904,2625.0,2624.9,3.80966893]
[1750066578326,10.1904,2625.1,2624.9,3.80955217]
[1750066578520,6.31863783,2625.0,2624.9,3.80955217]
[1750066579928,0.8146,2624.9,2624.7,4.00032914]
[1750066580108,6.33764639,2624.8,2624.5,3.81018201]
[1750066580309,6.50903783,2624.6,2624.4,3.81031885]
[1750066580488,6.31863783,2624.6,2624.3,4.47714823]
[1750066580810,6.50903783,2624.4,2624.3,4.47714823]
[1750066582793,0.1904,2624.4,2624.3,4.47714823]
[1750066583120,0.1904,2624.7,2624.6,3.81003654]
[1750066583419,10.1904,2624.7,2624.4,3.81035123]
[1750066583580,0.1904,2624.5,2624.4,3.81035123]
[1750066584600,0.1904,2624.5,2624.4,3.81039475]
[1750066585905,0.1904,2624.5,2624.3,4.47716353]
[1750066586232,0.1904,2624.5,2624.4,3.81039475]
[1750066586400,0.1904,2624.5,2624.3,0.6667]
[1750066586607,6.31863783,2624.4,2624.3,0.6667]
[1750066587129,6.31863783,2624.4,2624.3,4.47723995]
[1750066587734,0.1904,2624.5,2624.4,3.81039475]
[1750066589434,10.0,2624.7,2624.5,3.81020655]
[1750066589609,10.0,2624.9,2624.6,3.81010439]
[1750066589811,0.1904,2624.8,2624.6,3.81002964]
[1750066590009,0.1904,2624.8,2624.5,4.59556681]
[1750066590209,0.1904,2624.8,2624.5,3.81024957]
[1750066590210,6.31863783,2624.7,2624.5,3.81024957]
[1750066590448,6.31863783,2624.7,2624.4,4.00073345]
[1750066590634,6.50903783,2624.5,2624.4,3.81033345]
[1750066590946,6.50903783,2624.5,2624.3,4.47719127]
[1750066591948,6.50903783,2624.5,2624.4,3.81039475]
[1750066592137,6.50903783,2624.5,2624.3,4.4771695]
[1750066593866,6.50903783,2624.5,2624.4,3.81039475]
[1750066594559,6.50903783,2624.5,2624.3,4.47715002]
[1750066596915,0.1904,2624.5,2624.4,3.81039475]
[1750066597248,0.7868,2625.3,2625.1,3.80937108]
[1750066597419,0.1904,2625.2,2625.1,3.80937869]
[1750066597854,2.2671056,2625.5,2625.3,3.80900256]
[1750066598053,2.2671056,2625.5,2625.4,3.80894339]
[1750066598862,8.58574343,2625.5,2625.1,4.62106033]
[1750066599086,6.31863783,2625.3,2625.2,3.80915948]
[1750066599627,0.1904,2625.4,2625.3,3.80908848]
[1750066601765,2.2671056,2625.5,2625.4,3.80894339]
[1750066606087,8.58574343,2625.5,2625.4,3.80894339]
[1750066608382,6.31863783,2625.5,2625.4,3.80894339]
[1750066610991,6.31863783,2625.5,2625.3,3.80902527]
[1750066611505,6.31863783,2625.5,2625.4,3.80894339]
[1750066614757,0.1904,2625.6,2625.5,3.80879832]
[1750066617293,0.1904,2625.6,2625.4,3.80886775]
[1750066617472,6.31863783,2625.5,2625.4,3.80886775]
[1750066621692,0.1904,2625.6,2625.5,3.80879832]
[1750066622472,0.1904,2625.6,2625.4,3.80885735]
[1750066622801,6.31863783,2625.5,2625.3,3.80900558]
[1750066623002,6.31863783,2625.5,2625.3,3.80400558]
[1750066623301,6.31863783,2625.5,2625.4,3.80894339]
[1750066626308,10.0,2625.4,2625.1,0.1904]
[1750066626508,0.1904,2625.2,2625.1,3.80930151]
[1750066628006,0.1904,2625.2,2625.0,3.80945739]
[1750066628402,0.20940856,2625.2,2625.0,3.80945739]
[1750066629516,0.20940856,2625.2,2625.1,3.80937869]
[1750066629517,0.1904,2625.2,2625.1,3.80937869]
[1750066629720,0.1904,2625.2,2624.9,3.8096303]
[1750066630028,0.1904,2625.2,2625.0,3.80944462]
[1750066631419,0.1904,2625.2,2625.1,3.80937869]
[1750066643660,10.0,2625.5,2625.3,3.80895771]
[1750066643860,10.0,2625.5,2625.4,3.80894339]
[1750066644061,0.1904,2625.5,2625.4,3.80894339]
[1750066644764,0.7855,2625.9,2625.6,3.80854705]
[1750066644961,0.1904,2625.7,2625.6,3.80854705]
[1750066645523,10.1904,2625.7,2625.6,3.80854705]
[1750066649742,6.73513728,2625.9,2625.7,3.80844968]
[1750066650056,6.50903783,2625.9,2625.7,3.80844968]
[1750066651778,0.1904,2625.9,2625.8,3.80836316]
[1750066651941,13.30474639,2626.3,2626.0,3.80801985]
[1750066652274,6.31863783,2626.1,2626.0,3.80801985]
[1750066653170,10.1896,2626.2,2626.1,3.8079281]
[1750066656379,10.1896,2626.2,2626.0,3.80801218]
[1750066656575,6.31863783,2626.1,2626.0,3.80801218]
[1750066657870,10.1896,2626.2,2626.1,3.8079281]
[1750066659382,0.1896,2626.2,2626.1,3.8079281]
[1750066659856,10.1896,2626.2,2626.1,3.8079281]
[1750066660672,10.0,2626.2,2626.1,3.8079281]
[1750066660853,0.1896,2626.3,2626.2,3.80764324]
[1750066661183,10.0,2626.2,2626.1,3.80783458]
[1750066661380,3.43202464,2626.2,2625.9,0.1904]
[1750066661583,10.7793,2625.9,2625.5,3.80866447]
[1750066661759,6.31863783,2625.6,2625.5,3.80866447]
[1750066662080,16.50903783,2625.7,2625.6,3.80865326]
[1750066667299,16.50903783,2625.7,2625.5,3.80872301]
[1750066667806,16.50903783,2625.7,2625.6,3.80865326]
[1750066669595,16.50903783,2625.7,2625.5,3.8087273]
[1750066670192,16.50903783,2625.7,2625.6,3.80865326]
[1750066670708,10.0,2625.6,2625.3,3.80904083]
[1750066670889,10.0,2625.4,2625.3,3.80904083]
[1750066672664,10.0,2625.4,2625.2,3.80915202]
[1750066672863,6.31863783,2625.3,2625.1,3.80930187]
[1750066673063,6.31863783,2625.3,2625.2,3.80923358]
[1750066673612,10.0,2625.4,2625.2,3.80923358]
[1750066674394,10.0,2625.4,2625.3,3.80908848]
[1750066675829,0.1904,2625.5,2625.4,3.80894339]
[1750066680248,10.0,2625.8,2625.4,0.8177]
[1750066680439,0.1904,2625.7,2625.6,3.80855115]
[1750066682299,0.1904,2625.7,2625.6,4.6520561]
[1750066682499,12.52063783,2626.3,2626.1,3.80792643]
[1750066682754,10.01900856,2626.2,2626.1,3.80792643]
[1750066682915,10.0,2626.2,2626.1,3.80792643]
[1750066683435,0.1896,2626.1,2626.0,3.80799487]
[1750066684145,6.50823783,2626.1,2625.9,3.80813456]
[1750066684740,8.15906161,2626.1,2625.9,3.80813456]
[1750066684933,0.84240856,2626.0,2625.5,3.80874327]
[1750066685202,0.1904,2625.8,2625.7,3.80848127]
[1750066686804,16.31863783,2626.1,2626.0,3.80807311]
[1750066687006,16.50903783,2626.1,2626.0,3.80807311]
[1750066688007,10.1896,2626.3,2626.2,3.80766033]
[1750066688942,10.1896,2626.3,2626.1,3.80785792]
[1750066689113,6.31863783,2626.2,2626.0,4.56847902]
[1750066690548,10.1896,2626.3,2626.1,3.8079281]
[1750066690549,16.50823783,2626.3,2626.1,3.8079281]
[1750066690709,16.50823783,2626.3,2626.0,4.56848788]
[1750066693549,16.50823783,2626.3,2626.1,3.80792005]
[1750066693916,16.50823783,2626.3,2626.0,4.5684865]
[1750066695048,16.50823783,2626.3,2626.0,3.8079865]
[1750066695350,6.31863783,2626.1,2626.0,3.8079865]
[1750066696840,6.31863783,2626.1,2625.7,0.1904]
[1750066697036,6.31863783,2625.9,2625.6,3.99899332]
[1750066697239,6.31863783,2625.9,2625.7,3.80836927]
[1750066697564,6.31863783,2625.9,2625.8,3.80836316]
[1750066698171,0.1904,2626.0,2625.9,3.80821813]
[1750066698488,10.0,2626.2,2626.0,3.80799574]
[1750066698633,10.1896,2626.2,2626.0,3.80799574]
[1750066701471,10.1896,2626.2,2626.1,3.8079281]
[1750066701671,6.50823783,2626.2,2626.1,3.8079281]
[1750066702634,16.50823783,2626.2,2626.1,3.8079281]
[1750066703535,16.50823783,2626.2,2626.0,3.80799613]
[1750066704444,16.50823783,2626.2,2626.0,3.80806055]
[1750066705477,16.50823783,2626.2,2625.9,3.80813465]
[1750066705775,6.31863783,2626.0,2625.9,3.80813465]
[1750066712586,10.1896,2626.2,2625.8,3.99863949]
[1750066712587,10.1896,2626.2,2626.1,3.8079281]
[1750066712751,10.1896,2626.2,2626.0,3.80799827]
[1750066712752,16.50823783,2626.2,2626.0,3.80799827]
[1750066713544,18.85936161,2626.2,2626.0,3.80799827]
[1750066713982,0.01900856,2626.1,2625.8,0.1904]
[1750066714168,6.50903783,2625.9,2625.8,3.80828765]
[1750066714892,6.50903783,2625.9,2625.7,3.80845017]
[1750066715187,6.50903783,2625.9,2625.8,3.80836316]
[1750066715748,6.50903783,2625.9,2625.7,3.80844138]
[1750066716062,6.50903783,2625.9,2625.8,3.80836316]
[1750066716271,6.50903783,2625.9,2625.7,3.80842514]
[1750066716473,6.50903783,2625.9,2625.4,0.999]
[1750066716655,0.1904,2625.9,2625.7,3.80848129]
[1750066716853,6.33764639,2625.8,2625.4,3.80889708]
[1750066717182,6.31863783,2625.5,2625.4,3.80889708]
[1750066717560,6.31863783,2625.5,2625.3,3.80896195]
[1750066717749,6.31863783,2625.5,2625.4,3.80894339]
[1750066717750,6.50903783,2625.5,2625.4,3.80894339]
[1750066730323,6.50903783,2625.5,2625.1,0.1904]
[1750066730471,6.31863783,2625.3,2625.2,3.80915186]
[1750066731507,6.50903783,2625.5,2625.4,3.80894339]
[1750066733201,6.50903783,2625.5,2625.3,3.80902388]
[1750066734503,6.50903783,2625.5,2625.2,3.80923358]
[1750066734708,6.31863783,2625.3,2625.2,3.80923358]
[1750066734922,16.31863783,2625.3,2625.1,0.1904]
[1750066735211,10.0,2625.1,2625.0,3.8095238]
[1750066736009,10.0,2625.1,2624.9,3.80958983]
[1750066736320,6.31863783,2625.0,2624.7,0.8015]
[1750066736487,6.31863783,2624.8,2624.6,3.81004137]
[1750066736810,3.82854114,2625.0,2624.5,3.81017087]
[1750066736811,6.31863783,2624.7,2624.5,3.81017087]
[1750066737197,10.0,2624.9,2624.4,3.81027558]
[1750066737198,0.01900856,2624.8,2624.4,3.81030948]
[1750066737401,6.31863783,2624.7,2624.5,3.81023867]
[1750066738714,16.31863783,2624.7,2624.6,3.81010439]
[1750066739397,16.31863783,2624.7,2624.5,3.81017708]
[1750066739720,16.31863783,2624.7,2624.6,3.81010439]
[1750066741224,10.0,2624.7,2624.6,3.81010439]
[1750066742276,10.0,2624.7,2624.6,5.33273887]
[1750066742480,10.0,2624.7,2624.6,4.57070439]
[1750066745896,10.0,2624.7,2624.6,3.81010439]
[1750066750721,16.31863783,2624.7,2624.6,3.81010439]
[1750066751413,16.31863783,2624.7,2624.5,4.00057653]
[1750066751607,17.13553783,2624.7,2624.4,3.81037198]
[1750066751820,12.63916378,2624.7,2624.4,3.81037198]
[1750066752023,10.1904,2624.7,2624.6,3.81010439]
[1750066752204,1.19129682,2625.2,2624.6,0.7718]
[1750066752531,0.1904,2625.1,2625.0,3.80946512]
[1750066752733,10.1904,2625.1,2625.0,3.80946512]
[1750066753030,10.1904,2625.1,2624.9,3.80959949]
[1750066753242,10.1904,2625.1,2625.0,3.8095238]
[1750066753907,11.84130378,2625.1,2624.8,3.8097629]
[1750066754097,6.31863783,2624.9,2624.7,3.80983179]
[1750066754497,6.50903783,2624.9,2624.7,3.80983179]
[1750066754692,6.50903783,2624.9,2624.6,3.81006533]
[1750066754907,6.31863783,2624.7,2624.6,3.81006533]
[1750066755526,6.31863783,2624.7,2624.5,3.81024957]
[1750066755753,6.31863783,2624.7,2624.6,3.81010439]
[1750066756159,10.0,2624.6,2624.3,0.6667]
[1750066756472,10.0,2624.4,2624.3,0.6667]
[1750066756628,10.0,2624.4,2624.3,4.47723995]
[1750066758932,10.0,2624.4,2624.3,0.6667]
[1750066759854,10.0,2624.4,2624.3,4.47723995]
[1750066760661,10.0,2624.4,2624.3,0.6667]
[1750066764036,0.1904,2624.6,2624.5,3.81024957]
[1750066764249,0.1904,2624.6,2624.4,3.81032238]
[1750066764565,0.1904,2624.6,2624.5,3.81024957]
[1750066765944,16.31863783,2624.7,2624.6,3.81010439]
[1750066766137,3.80939703,2625.1,2624.4,0.03810079]
[1750066766138,0.7866,2625.1,2624.4,0.03810079]
[1750066766470,6.31863783,2624.8,2624.5,4.00059685]
[1750066766670,16.31863783,2624.8,2624.7,3.80995923]
[1750066766843,16.31863783,2624.8,2624.6,3.81004171]
[1750066767038,0.1904,2624.7,2624.6,3.8099743]
[1750066767251,6.50903783,2624.7,2624.6,3.8099743]
[1750066767456,1.601,2625.6,2624.3,10.67922437]
[1750066767664,7.11314639,2625.6,2625.0,3.80947708]
[1750066767830,0.1904,2625.5,2625.4,3.80883134]
[1750066768395,6.31863783,2625.6,2625.5,3.80879832]
[1750066768596,16.50903783,2625.6,2625.5,3.80879832]
[1750066769391,10.0,2625.5,2625.4,3.80889005]
[1750066769582,16.31863783,2625.5,2625.4,3.80889005]
[1750066770357,0.1904,2625.6,2625.4,3.80889005]
[1750066770557,6.31863783,2625.5,2625.4,3.80889005]
[1750066770852,6.31863783,2625.5,2625.4,3.80894339]
[1750066772269,6.31863783,2625.5,2625.3,3.80907507]
[1750066772769,8.62231481,2625.5,2625.1,0.1904]
[1750066772969,6.50903783,2625.2,2624.9,3.80963052]
[1750066773169,6.31863783,2625.0,2624.9,3.80963052]
[1750066774512,6.50903783,2625.2,2625.1,3.80937869]
[1750066775420,6.50903783,2625.2,2625.0,3.80944521]
[1750066775604,6.50903783,2625.2,2625.1,3.80937869]
[1750066777574,0.1904,2625.2,2625.1,3.80937869]
[1750066777774,6.31863783,2625.3,2625.2,3.80923358]
[1750066779233,0.809,2625.2,2624.8,3.80974791]
[1750066779391,6.31863783,2624.9,2624.8,3.80966946]
[1750066779910,6.31863783,2624.9,2624.5,0.9841]
[1750066779911,6.31863783,2624.9,2624.6,3.81003156]
[1750066780279,10.0,2624.6,2624.2,3.81058355]
[1750066780518,6.31863783,2624.4,2624.3,4.47723995]
[1750066781192,7.13093783,2624.4,2624.3,0.6667]
[1750066781417,7.13093783,2624.4,2624.1,0.02]
[1750066781418,3.81068516,2624.2,2624.1,0.02]
[1750066781575,20.14833155,2624.2,2624.1,0.02]
[1750066781770,20.12932299,2624.2,2624.1,0.02]
[1750066782179,23.40457566,2624.2,2623.1,1.57083894]
[1750066782376,6.31863783,2623.2,2623.1,1.57083894]
[1750066782582,10.1904,2623.2,2623.1,5.38312211]
[1750066782810,10.0,2623.5,2623.4,3.81184722]
[1750066782991,10.1904,2623.5,2623.4,3.81184722]
[1750066783711,0.1904,2623.8,2623.7,3.81141136]
[1750066784378,0.8102,2624.5,2624.2,3.81061004]
[1750066784580,10.5088534,2624.4,2623.9,0.1904]
[1750066784823,10.0,2624.2,2624.1,3.81074604]
[1750066785130,0.3184534,2624.3,2624.2,3.81068516]
[1750066785316,0.3184534,2624.3,2624.2,4.00108516]
[1750066786719,6.31863783,2624.4,2624.3,3.81053995]
[1750066787531,10.788,2624.3,2623.3,0.8103]
[1750066787835,0.1904,2624.1,2623.9,3.81111172]
[1750066788036,0.1904,2624.1,2623.8,3.81122083]
[1750066788037,6.31863783,2624.0,2623.8,3.81122083]
[1750066788329,6.31863783,2623.9,2623.7,3.81132531]
[1750066788532,6.31863783,2623.8,2623.7,3.81132531]
[1750066788889,10.1904,2623.9,2623.7,3.81132531]
[1750066789400,10.1904,2623.9,2623.5,3.81169469]
[1750066789598,10.1904,2623.9,2623.7,3.8112854]
[1750066790532,0.1904,2623.9,2623.8,3.8112661]
[1750066790759,16.244,2624.5,2624.1,3.81070508]
[1750066791035,10.1904,2624.3,2624.2,3.81064701]
[1750066791245,0.1904,2624.3,2624.2,3.81064701]
[1750066791595,0.81560856,2624.6,2624.5,3.81024957]
[1750066791596,10.1904,2624.6,2624.5,3.81024957]
[1750066791800,0.1904,2624.6,2624.5,3.81024957]
[1750066792896,10.0,2624.9,2624.8,3.80977846]
[1750066793096,12.52326595,2624.9,2624.8,3.80977846]
[1750066793543,0.1904,2624.9,2624.8,3.80977846]
[1750066794525,0.1904,2624.9,2624.7,3.80995079]
[1750066794526,0.1904,2624.9,2624.7,3.80990305]
[1750066795440,0.1904,2624.9,2624.8,3.80981408]
[1750066795936,0.1904,2624.9,2624.6,3.80999067]
[1750066796108,0.1904,2624.9,2624.7,3.80995535]
[1750066796307,0.1904,2624.9,2624.8,3.80981408]
[1750066798133,10.0,2624.8,2624.5,3.8102447]
[1750066798295,10.0,2624.8,2624.3,0.1904]
[1750066798296,8.9866595,2624.6,2624.4,3.81030198]
[1750066799037,9.1770595,2624.6,2624.4,3.81030198]
[1750066799443,9.1770595,2624.6,2624.3,3.81042137]
[1750066800313,0.1904,2624.4,2624.2,3.81068206]
[1750066800640,8.9866595,2624.3,2624.2,3.81068206]
[1750066801655,0.1904,2624.4,2624.3,3.81053995]
[1750066802923,0.1904,2624.4,2624.2,3.81060037]
[1750066803116,0.1904,2624.4,2624.3,3.81053995]
[1750066808859,10.1904,2624.6,2624.5,3.81024957]
[1750066810062,10.0,2624.6,2624.5,3.81024957]
[1750066811266,10.0,2624.6,2624.5,4.63604957]
[1750066811987,10.0,2624.8,2624.7,3.80984619]
[1750066812127,1.70153,2624.8,2624.6,3.81003116]
[1750066812548,1.70153,2624.8,2624.7,3.80995923]
[1750066813034,1.70153,2624.8,2624.6,3.81002698]
[1750066813379,1.70153,2624.8,2624.5,0.8258]
[1750066813581,0.01900856,2624.9,2624.7,3.8098589]
[1750066813755,0.01900856,2624.9,2624.6,3.81002925]
[1750066814874,15.75644268,2624.7,2624.6,3.81002925]
[1750066815186,15.75644268,2624.7,2624.5,3.81019123]
[1750066815187,10.0,2624.6,2624.5,3.81019123]
[1750066815408,5.75644268,2624.7,2624.5,3.81019123]
[1750066815541,5.75644268,2624.7,2624.6,3.81010439]
[1750066817944,10.0,2624.8,2624.6,3.81010439]
[1750066818166,10.0,2624.8,2624.7,3.80995923]
[1750066819083,10.1904,2624.8,2624.7,3.80995923]
[1750066820195,10.1904,2624.8,2624.6,3.81001669]
[1750066820335,5.75644268,2624.7,2624.6,3.81001669]
[1750066821878,10.1904,2624.8,2624.7,3.80995923]
[1750066822050,0.1904,2625.0,2624.9,3.80958715]
[1750066822251,10.0,2625.0,2624.9,3.80958715]
[1750066824180,0.1904,2625.2,2625.1,3.80937869]
[1750066825508,0.1904,2625.2,2625.0,3.80948874]
[1750066825706,0.1904,2625.2,2625.1,3.80937869]
[1750066825872,5.94684268,2625.2,2625.1,3.80937869]
[1750066827006,0.1904,2625.2,2625.1,3.80937869]
[1750066834082,10.0,2625.4,2625.3,3.80908848]
[1750066834701,10.0,2625.4,2625.2,3.80915065]
[1750066835098,10.0,2625.4,2625.3,3.80908848]
[1750066836987,10.0,2625.0,2624.5,3.81024957]
[1750066837213,8.97718635,2624.8,2624.7,3.80995923]
[1750066841038,8.97718635,2624.8,2624.5,0.1904]
[1750066841039,10.7605,2624.7,2624.5,0.1904]
[1750066841357,10.7605,2624.7,2624.3,3.8104588]
[1750066841358,10.9509,2624.7,2624.4,3.81036512]
[1750066841711,10.9509,2624.7,2624.5,3.81024364]
[1750066841912,10.9509,2624.7,2624.4,3.81033065]
[1750066842667,9.16758635,2624.5,2624.2,3.810651]
[1750066842809,9.16758635,2624.5,2624.1,4.77777601]
[1750066843008,8.97718635,2624.2,2624.1,0.1904]
[1750066843341,8.97718635,2624.2,2624.1,3.81083037]
[1750066843716,8.97718635,2624.2,2624.0,3.81091095]
[1750066844242,8.97718635,2624.2,2624.1,3.81083037]
[1750066848944,5.75912173,2624.2,2624.0,3.81090284]
[1750066849445,5.77813029,2624.2,2624.1,3.81083037]
[1750066850338,5.75912173,2624.2,2624.1,3.81083037]
[1750066855057,0.7563,2624.6,2624.4,3.81038993]
[1750066855215,0.20940856,2624.5,2624.4,3.81038993]
[1750066855554,0.1904,2624.5,2624.4,3.81038993]
[1750066856955,5.75912173,2624.9,2624.7,3.80990326]
[1750066857151,0.84467217,2624.8,2624.7,3.80990326]
[1750066857329,0.1904,2624.8,2624.7,3.80990326]
[1750066857530,10.1904,2624.8,2624.7,3.80990326]
[1750066859631,0.1904,2624.8,2624.7,3.80990326]
[1750066860052,5.75912173,2625.1,2624.9,3.80957731]
[1750066860254,10.0,2625.0,2624.9,3.80957731]
[1750066862156,0.1904,2625.3,2625.1,3.80937869]
[1750066862371,0.1904,2625.3,2625.2,3.80923358]
[1750066862674,5.94952173,2625.5,2625.4,3.80894339]
[1750066864883,5.94952173,2625.5,2625.3,3.80900395]
[1750066865383,5.94952173,2625.5,2625.4,3.80894339]
[1750066865542,5.94952173,2625.5,2625.3,3.80902118]
[1750066866681,5.94952173,2625.5,2625.4,3.80894339]
[1750066868179,5.94952173,2625.5,2625.3,3.80901558]
[1750066869179,5.96853029,2625.5,2625.4,3.80894339]
[1750066869385,5.94952173,2625.5,2625.4,3.80894339]
[1750066869596,0.1904,2625.5,2625.4,3.80894339]
[1750066870782,15.94952173,2625.5,2625.3,3.80907469]
[1750066871990,15.94952173,2625.5,2625.4,3.80894339]
[1750066872994,15.94952173,2625.5,2625.3,3.80901932]
[1750066873979,0.80430856,2625.4,2624.9,3.80955816]
[1750066874179,5.75912173,2625.0,2624.9,3.80955816]
[1750066874558,6.54442173,2625.0,2624.5,1.602]
[1750066874757,5.75912173,2624.6,2624.5,5.60264957]
[1750066875095,5.75912173,2624.6,2624.5,7.24488902]
[1750066875291,5.75912173,2624.8,2624.6,3.81000537]
[1750066875662,5.75912173,2624.8,2624.7,3.80995923]
[1750066876598,0.1904,2625.0,2624.9,3.80966893]